bitfinex-derivatives/quotes_BTCF0:USTF0_20250806
["timestamp","ask_amount","ask_price","bid_price","bid_amount"]
[1754492676694,0.4622871,115080.0,115070.0,0.21637]
[1754492677793,0.4522933,115070.0,115060.0,0.92982643]
[1754492677996,0.8791073,115070.0,115060.0,0.01622643]
[1754492678192,0.1738184,115060.0,115050.0,0.019637]
[1754492678496,0.4060736,115050.0,115040.0,0.91356]
[1754492678799,0.4523236,115050.0,115040.0,1.10256394]
[1754492679292,0.4523236,115050.0,115040.0,1.10260394]
[1754492679686,0.1738279,115060.0,115050.0,0.4584336]
[1754492679891,0.2617199,115070.0,115060.0,0.4584185]
[1754492680090,0.2617199,115070.0,115060.0,1.0874185]
[1754492680401,0.001,115070.0,115060.0,1.5142325]
[1754492680784,0.001,115070.0,115060.0,1.9880485]
[1754492680983,0.473064,115100.0,115090.0,0.4583732]
[1754492680984,0.3335511,115100.0,115090.0,0.4583732]
[1754492681203,0.5363059,115110.0,115100.0,0.4583581]
[1754492681595,0.5825559,115110.0,115100.0,0.2846]
[1754492681905,0.4522632,115090.0,115080.0,1.17423]
[1754492682194,0.1737732,115090.0,115080.0,0.5018241]
[1754492682409,0.4522632,115090.0,115080.0,0.4583883]
[1754492683290,0.3040985,115100.0,115090.0,0.4583727]
[1754492683600,0.2606558,115100.0,115090.0,1.0873327]
[1754492683903,0.1847712,115100.0,115090.0,1.0873327]
[1754492684496,0.011,115100.0,115090.0,1.0873327]
[1754492684699,0.260627,115110.0,115100.0,0.2846]
[1754492684894,0.539117,115110.0,115100.0,0.2846]
[1754492685497,0.4522482,115100.0,115090.0,0.4583726]
[1754492685694,0.4522482,115100.0,115090.0,1.0872926]
[1754492686001,0.8790622,115100.0,115090.0,0.21637]
[1754492686297,0.4522632,115090.0,115080.0,0.21637]
[1754492686498,0.8790772,115090.0,115080.0,0.21637]
[1754492687097,0.8790772,115090.0,115080.0,0.04611]
[1754492687493,0.1737883,115080.0,115070.0,0.18994168]
[1754492687704,0.8790923,115080.0,115070.0,0.21637]
[1754492687997,0.4522934,115070.0,115060.0,0.21637]
[1754492688202,0.8791074,115070.0,115060.0,0.04611]
[1754492688799,0.4523085,115060.0,115050.0,0.4584336]
[1754492689001,0.4523085,115060.0,115050.0,1.0873536]
[1754492689195,0.1738185,115060.0,115050.0,1.0873536]
[1754492689595,0.305175,115070.0,115060.0,0.4584186]
[1754492689790,0.2617209,115070.0,115060.0,0.4584186]
[1754492689999,0.5402109,115070.0,115060.0,0.2846]
[1754492690796,0.5392109,115070.0,115060.0,0.2846]
[1754492690997,0.9720249,115070.0,115060.0,0.04611]
[1754492691197,0.1738187,115060.0,115050.0,0.21637]
[1754492691390,0.8791227,115060.0,115050.0,0.21637]
[1754492691891,0.4523239,115050.0,115040.0,0.14886609]
[1754492692092,0.1738339,115050.0,115040.0,1.12189509]
[1754492692896,0.4060739,115050.0,115040.0,1.12189549]
[1754492693312,0.4523239,115050.0,115040.0,1.12189549]
[1754492693606,0.8831379,115050.0,115040.0,0.25089609]
[1754492693806,0.8831379,115050.0,115040.0,0.23574085]
[1754492693999,0.8831379,115050.0,115040.0,0.06648085]
[1754492694203,1.5120979,115050.0,115040.0,0.001]
[1754492695202,0.4523696,115020.0,115010.0,0.5019534]
[1754492695503,0.1738796,115020.0,115010.0,1.0874419]
[1754492695698,0.5365241,115030.0,115020.0,0.4584796]
[1754492695901,0.2173455,115030.0,115020.0,0.4584796]
[1754492696299,0.2173455,115030.0,115020.0,1.0878796]
[1754492697206,0.2193455,115030.0,115020.0,1.0878796]
[1754492697513,0.002,115030.0,115020.0,1.0875196]
[1754492697812,0.1758647,115030.0,115020.0,1.0885196]
[1754492698305,0.4543547,115030.0,115020.0,1.0885196]
[1754492698611,0.3352047,115030.0,115020.0,1.17341876]
[1754492698805,0.1758647,115030.0,115020.0,1.17341876]
[1754492699706,0.1758647,115030.0,115020.0,0.54437876]
[1754492699897,0.3320647,115030.0,115020.0,0.99949916]
[1754492700106,0.8781287,115030.0,115020.0,0.37049916]
[1754492700301,0.8781287,115030.0,115020.0,1.17660896]
[1754492700509,0.3320647,115030.0,115020.0,1.17660896]
[1754492700702,0.4513147,115030.0,115020.0,0.54752896]
[1754492700904,0.4513147,115030.0,115020.0,0.37364916]
[1754492701210,0.8781287,115030.0,115020.0,0.08589916]
[1754492701404,0.8781287,115030.0,115020.0,0.25977996]
[1754492701607,0.8781287,115030.0,115020.0,0.13152916]
[1754492701809,0.8781287,115030.0,115020.0,0.07083825]
[1754492702199,0.4028725,115000.0,114990.0,0.21190383]
[1754492702403,0.4028725,115000.0,114990.0,0.00017383]
[1754492702404,0.8761765,115000.0,114990.0,0.00017383]
[1754492703107,1.5052165,115000.0,114990.0,0.00017383]
[1754492703310,0.3301579,114970.0,114960.0,0.45996813]
[1754492703510,0.8762219,114970.0,114960.0,0.21964813]
[1754492703816,2.3762219,114970.0,114960.0,0.01904914]
[1754492704010,1.9494079,114970.0,114960.0,0.01904914]
[1754492704206,2.3762219,114970.0,114960.0,0.01904914]
[1754492704521,0.1739579,114970.0,114960.0,0.47897204]
[1754492704711,0.20269,114970.0,114960.0,0.47897204]
[1754492704921,0.1562,114970.0,114960.0,0.55266781]
[1754492705108,0.1562,114970.0,114960.0,1.18370781]
[1754492705312,0.4029026,114980.0,114970.0,0.4599078]
[1754492705509,0.1739426,114980.0,114970.0,0.4599078]
[1754492705714,0.5363545,114990.0,114980.0,0.1739437]
[1754492705915,2.0363545,114990.0,114980.0,0.4598937]
[1754492706111,1.9928704,114990.0,114980.0,0.4598937]
[1754492706310,0.4493656,115000.0,114990.0,0.4598778]
[1754492706810,1.9493656,115000.0,114990.0,0.4598778]
[1754492707013,0.1739438,114980.0,114970.0,0.2609175]
[1754492707213,0.3301438,114980.0,114970.0,0.9679591]
[1754492707406,0.006,114990.0,114980.0,0.4598938]
[1754492707812,1.9928354,115010.0,115000.0,0.4598635]
[1754492708122,0.3300833,115020.0,115010.0,0.4598484]
[1754492708512,0.489774,115030.0,115020.0,0.3856133]
[1754492708716,0.4463046,115030.0,115020.0,0.4598333]
[1754492709217,0.4927946,115030.0,115020.0,0.3856133]
[1754492710018,0.4927946,115030.0,115020.0,0.21173]
[1754492710212,0.4927946,115030.0,115020.0,0.3856133]
[1754492710519,0.3775446,115030.0,115020.0,0.4598333]
[1754492710715,0.1778682,115030.0,115020.0,0.4598333]
[1754492710916,0.1778682,115030.0,115020.0,0.52853795]
[1754492711315,0.1838682,115030.0,115020.0,0.52853795]
[1754492711511,0.4593182,115030.0,115020.0,0.35465465]
[1754492711823,0.4593182,115030.0,115020.0,0.06870465]
[1754492712115,0.1738833,115020.0,115010.0,1.0581386]
[1754492712321,0.4493333,115020.0,115010.0,1.1037686]
[1754492712620,0.4493333,115020.0,115010.0,1.1779886]
[1754492713018,0.4493333,115020.0,115010.0,0.503314]
[1754492713218,0.4493333,115020.0,115010.0,1.134554]
[1754492713415,0.4028433,115020.0,115010.0,1.134554]
[1754492713616,0.1738833,115020.0,115010.0,1.134554]
[1754492713824,0.3142893,115030.0,115020.0,0.4598333]
[1754492714028,0.4644893,115030.0,115020.0,0.28595]
[1754492714316,0.5827393,115030.0,115020.0,0.28595]
[1754492714521,0.5827393,115030.0,115020.0,0.04563]
[1754492715027,0.5827393,115030.0,115020.0,0.11423033]
[1754492715423,0.5867393,115030.0,115020.0,0.11423033]
[1754492715819,0.5867393,115030.0,115020.0,0.06860033]
[1754492715820,1.57340333,115030.0,115020.0,0.06860033]
[1754492716019,0.1738984,115010.0,115000.0,0.5468169]
[1754492716417,0.3300984,115010.0,115000.0,0.5468169]
[1754492716621,0.3300984,115010.0,115000.0,0.28595]
[1754492716817,0.80457243,115010.0,115000.0,0.04563]
[1754492717318,0.4513484,115010.0,115000.0,0.4598639]
[1754492717529,0.3350984,115010.0,115000.0,0.4598639]
[1754492717833,0.1788984,115010.0,115000.0,0.4598639]
[1754492718226,0.003,115010.0,115000.0,1.0911039]
[1754492718426,0.006,115010.0,115000.0,1.0911039]
[1754492718630,0.1798982,115010.0,115000.0,1.0911039]
[1754492718824,0.1798982,115010.0,115000.0,0.4598639]
[1754492719027,0.4553482,115010.0,115000.0,0.28595]
[1754492719630,0.4573482,115010.0,115000.0,0.04563]
[1754492720027,0.4493642,115000.0,114990.0,0.28595]
[1754492720226,0.4493793,114990.0,114980.0,0.13888167]
[1754492720524,0.1739293,114990.0,114980.0,0.47892607]
[1754492722132,0.1739293,114990.0,114980.0,1.11044607]
[1754492723235,0.4493793,114990.0,114980.0,1.11020607]
[1754492723635,0.4503793,114990.0,114980.0,0.93626167]
[1754492724029,0.4503793,114990.0,114980.0,0.30498167]
[1754492724428,0.4503793,114990.0,114980.0,0.47892607]
[1754492724825,0.1749293,114990.0,114980.0,0.47892607]
[1754492725128,0.4523793,114990.0,114980.0,0.47892607]
[1754492726136,0.1769293,114990.0,114980.0,0.47892607]
[1754492727134,0.4523793,114990.0,114980.0,0.47892607]
[1754492727331,0.4523793,114990.0,114980.0,0.30498167]
[1754492727532,0.88139709,114990.0,114980.0,0.30498167]
[1754492727931,0.1739439,114980.0,114970.0,1.0600475]
[1754492728136,0.4493939,114980.0,114970.0,0.91683]
[1754492728737,0.4493939,114980.0,114970.0,1.090789]
[1754492729538,0.4493939,114980.0,114970.0,0.459909]
[1754492730136,0.4503939,114980.0,114970.0,1.090029]
[1754492730436,0.001,114980.0,114970.0,1.51904679]
[1754492730938,0.1749445,114980.0,114970.0,0.459909]
[1754492731140,0.1749445,114980.0,114970.0,1.090229]
[1754492731534,0.4547345,114980.0,114970.0,1.0902696]
[1754492731833,0.4547345,114980.0,114970.0,0.04563]
[1754492732044,0.4547345,114980.0,114970.0,0.1739596]
[1754492732045,0.3521538,114980.0,114970.0,0.1739596]
[1754492732344,0.4702038,114980.0,114970.0,0.4549796]
[1754492732732,0.5852138,114980.0,114970.0,0.28102]
[1754492732927,0.1739596,114970.0,114960.0,0.36589568]
[1754492733243,0.88276739,114970.0,114960.0,0.08589854]
[1754492733536,0.4070347,114960.0,114950.0,1.058174]
[1754492733737,0.4537647,114960.0,114950.0,1.129494]
[1754492733937,0.4537647,114960.0,114950.0,1.21455865]
[1754492734537,0.4527647,114960.0,114950.0,1.21455865]
[1754492734739,0.4517647,114960.0,114950.0,1.21455865]
[1754492735336,0.3044503,114970.0,114960.0,0.1739747]
[1754492735542,0.4257372,114970.0,114960.0,0.4549947]
[1754492735838,0.5406985,114990.0,114980.0,0.4549645]
[1754492736540,0.4972136,114990.0,114980.0,0.4549645]
[1754492736728,0.5406746,115000.0,114990.0,0.4549493]
[1754492737646,0.96969239,115000.0,114990.0,0.04746]
[1754492737841,0.1739325,114990.0,114980.0,0.2174194]
[1754492738143,0.3387277,114980.0,114970.0,1.1572662]
[1754492738340,0.88275549,114980.0,114970.0,0.63032]
[1754492738848,0.88275549,114980.0,114970.0,0.804284]
[1754492739149,0.4537377,114980.0,114970.0,0.804284]
[1754492739847,0.1739633,114970.0,114960.0,1.1449889]
[1754492740048,0.4537533,114970.0,114960.0,1.2163089]
[1754492740247,0.4537533,114970.0,114960.0,1.1288809]
[1754492740439,0.4537533,114970.0,114960.0,0.91142]
[1754492740745,0.4537533,114970.0,114960.0,0.4549984]
[1754492740945,0.4537533,114970.0,114960.0,0.8515184]
[1754492741145,0.4537533,114970.0,114960.0,0.4549984]
[1754492741345,0.4567533,114970.0,114960.0,1.0850784]
[1754492741543,0.1739784,114960.0,114950.0,0.61830484]
[1754492741747,0.4537684,114960.0,114950.0,1.31962484]
[1754492742348,0.1739784,114960.0,114950.0,1.31962484]
[1754492742745,0.1819661,114970.0,114960.0,0.4550012]
[1754492743045,0.008,114970.0,114960.0,0.88401899]
[1754492743447,0.584176,115000.0,114990.0,0.1739382]
[1754492743750,0.584176,115000.0,114990.0,0.4549582]
[1754492743950,0.425682,115000.0,114990.0,0.4549582]
[1754492744246,0.2206671,114990.0,114980.0,0.83958]
[1754492744450,0.88274489,114990.0,114980.0,0.04746]
[1754492744752,0.4537433,114980.0,114970.0,1.0848303]
[1754492744939,0.4537433,114980.0,114970.0,0.04746]
[1754492745144,0.4537624,114970.0,114960.0,1.0134849]
[1754492746747,0.4537624,114970.0,114960.0,1.0848049]
[1754492746948,0.3387524,114970.0,114960.0,1.0848049]
[1754492747142,0.3864824,114970.0,114960.0,1.0848049]
[1754492747341,0.4547624,114970.0,114960.0,1.0848049]
[1754492747539,0.4547624,114970.0,114960.0,0.91082]
[1754492747949,0.4547624,114970.0,114960.0,1.0848073]
[1754492748151,0.4547624,114970.0,114960.0,0.4550073]
[1754492748454,0.4547624,114970.0,114960.0,1.0846473]
[1754492748652,0.4547624,114970.0,114960.0,0.91066]
[1754492749155,0.4547624,114970.0,114960.0,0.28102]
[1754492749357,0.4547624,114970.0,114960.0,0.91066]
[1754492749858,0.4547624,114970.0,114960.0,1.0846423]
[1754492750153,0.3397524,114970.0,114960.0,0.4550023]
[1754492750355,0.3397524,114970.0,114960.0,1.0846423]
[1754492750750,0.3397524,114970.0,114960.0,0.4550023]
[1754492750944,0.3397524,114970.0,114960.0,1.0846423]
[1754492751456,0.001,114970.0,114960.0,1.51366009]
[1754492752063,0.1749692,114970.0,114960.0,1.0846423]
[1754492752251,0.1749692,114970.0,114960.0,1.51366009]
[1754492752556,0.1749692,114970.0,114960.0,1.51370009]
[1754492752761,0.1749692,114970.0,114960.0,0.4550023]
[1754492752955,0.1749692,114970.0,114960.0,1.0846823]
[1754492753252,0.1739692,114970.0,114960.0,1.0846823]
[1754492753450,0.1749692,114970.0,114960.0,1.0846823]
[1754492753649,0.1759692,114970.0,114960.0,1.0846823]
[1754492754056,0.1749692,114970.0,114960.0,1.0846823]
[1754492754257,0.1759692,114970.0,114960.0,1.0846823]
[1754492754856,0.1759692,114970.0,114960.0,0.4550023]
[1754492755053,0.1759692,114970.0,114960.0,1.0846423]
[1754492757155,0.1759692,114970.0,114960.0,0.4550023]
[1754492757755,0.3407492,114970.0,114960.0,1.0846423]
[1754492757952,0.3407492,114970.0,114960.0,0.4550023]
[1754492758459,0.4557592,114970.0,114960.0,0.91066]
[1754492758857,0.4557592,114970.0,114960.0,0.28102]
[1754492759056,0.4557592,114970.0,114960.0,0.16224]
[1754492759255,0.4537743,114960.0,114950.0,0.33768914]
[1754492759555,0.4537743,114960.0,114950.0,1.29629753]
[1754492759754,0.4537743,114960.0,114950.0,1.16975813]
[1754492760254,0.4537743,114960.0,114950.0,1.01478914]
[1754492760449,0.3402043,114960.0,114950.0,1.18878854]
[1754492760658,0.1749809,114970.0,114960.0,0.4498543]
[1754492760957,0.1749809,114970.0,114960.0,0.87887209]
[1754492760958,0.001,114970.0,114960.0,0.87887209]
[1754492761153,0.1749686,114970.0,114960.0,0.87887209]
[1754492761347,0.1749686,114970.0,114960.0,0.4498543]
[1754492761746,0.1759686,114970.0,114960.0,0.4498543]
[1754492763155,0.3421886,114970.0,114960.0,0.27587]
[1754492763359,0.1739836,114960.0,114950.0,0.32161604]
[1754492763557,0.4134536,114960.0,114950.0,1.22712604]
[1754492763755,0.4134536,114960.0,114950.0,1.18362644]
[1754492763959,0.4622436,114960.0,114950.0,1.18362644]
[1754492764155,0.4622436,114960.0,114950.0,0.55398644]
[1754492764353,0.4622436,114960.0,114950.0,1.00963914]
[1754492764754,0.4622436,114960.0,114950.0,1.18363784]
[1754492764949,0.4622436,114960.0,114950.0,0.71982394]
[1754492765152,0.4622436,114960.0,114950.0,0.13755394]
[1754492765455,0.89226139,114960.0,114950.0,0.13755394]
[1754492765860,0.4642436,114960.0,114950.0,0.13755394]
[1754492766256,0.89326139,114960.0,114950.0,0.09018394]
[1754492766451,0.89426139,114960.0,114950.0,0.09018394]
[1754492766859,0.89426139,114960.0,114950.0,0.01906449]
[1754492767057,1.52290139,114960.0,114950.0,0.01906449]
[1754492767258,0.4622582,114950.0,114940.0,0.15496899]
[1754492767452,0.89127599,114950.0,114940.0,0.15496899]
[1754492767657,0.4622733,114940.0,114930.0,0.15496899]
[1754492767857,0.4622733,114940.0,114930.0,0.20233899]
[1754492768563,0.4622733,114940.0,114930.0,0.20273]
[1754492769050,0.2960533,114940.0,114930.0,0.3767585]
[1754492769255,0.60302589,114950.0,114940.0,0.4498833]
[1754492769256,0.4569784,114950.0,114940.0,0.4498833]
[1754492769461,0.2175084,114950.0,114940.0,0.4498833]
[1754492769662,0.1750079,114950.0,114940.0,0.4498833]
[1754492769858,0.001,114950.0,114940.0,0.4498833]
[1754492770160,0.001,114950.0,114940.0,1.03387008]
[1754492770360,0.5004132,114980.0,114970.0,0.1739678]
[1754492770557,0.28826,114980.0,114970.0,0.4498378]
[1754492770761,0.1739527,114980.0,114970.0,0.4498378]
[1754492771773,0.1789527,114980.0,114970.0,0.4498378]
[1754492772272,0.4662127,114980.0,114970.0,0.4498378]
[1754492772470,0.4662127,114980.0,114970.0,0.46329981]
[1754492772471,0.1779527,114980.0,114970.0,0.46329981]
[1754492773371,0.1819527,114980.0,114970.0,0.46329981]
[1754492773760,0.008,114980.0,114970.0,0.8923176]
[1754492773965,0.5491354,115010.0,115000.0,0.173922]
[1754492774174,0.3401188,115020.0,115010.0,0.2173737]
[1754492774474,0.4621588,115020.0,115010.0,0.4497769]
[1754492775268,0.4621588,115020.0,115010.0,0.27587]
[1754492775471,0.4721588,115020.0,115010.0,0.4497769]
[1754492775677,0.08325,115020.0,115010.0,0.4497769]
[1754492775874,0.1838918,115020.0,115010.0,1.0811769]
[1754492776174,0.1778918,115020.0,115010.0,1.0811769]
[1754492776370,0.173907,115010.0,115000.0,0.9396386]
[1754492776668,0.462167,115010.0,115000.0,1.1246584]
[1754492777469,0.461167,115010.0,115000.0,1.1246584]
[1754492777873,0.4745504,115020.0,115000.0,1.1681386]
[1754492778072,0.5965904,115020.0,115010.0,0.27587]
[1754492778467,0.5925904,115020.0,115010.0,0.27687]
[1754492778868,0.5925904,115020.0,115010.0,0.34692298]
[1754492779069,0.5925904,115020.0,115010.0,0.34592298]
[1754492779371,1.02160819,115020.0,115010.0,0.07005298]
[1754492779572,0.1739068,115010.0,115000.0,0.003]
[1754492779770,0.89118459,115010.0,115000.0,0.003]
[1754492780071,0.295977,114990.0,114980.0,0.22218897]
[1754492780377,0.462197,114990.0,114980.0,0.24078147]
[1754492780575,0.173937,114990.0,114980.0,0.89829926]
[1754492781770,0.173937,114990.0,114980.0,0.90129926]
[1754492781980,0.3043824,115000.0,114990.0,0.1739372]
[1754492782279,0.2608751,115010.0,115000.0,0.449792]
[1754492782581,0.2608751,115010.0,115000.0,0.87880979]
[1754492782776,0.2173959,115010.0,115000.0,0.87880979]
[1754492783081,0.1739189,115010.0,115000.0,0.449792]
[1754492784982,0.4651789,115010.0,115000.0,0.449792]
[1754492785171,0.1769189,115010.0,115000.0,0.87880979]
[1754492785369,0.3919289,115010.0,115000.0,0.27587]
[1754492785683,0.4651789,115010.0,115000.0,0.90547]
[1754492785873,0.4651789,115010.0,115000.0,0.27587]
[1754492786277,0.173922,115000.0,114990.0,0.78492]
[1754492786472,0.173922,115000.0,114990.0,1.0062271]
[1754492786772,0.462182,115000.0,114990.0,0.90543]
[1754492786975,0.462182,115000.0,114990.0,0.27587]
[1754492787371,0.462182,115000.0,114990.0,0.90603]
[1754492787572,0.1739372,114990.0,114980.0,0.24383276]
[1754492787880,0.4621972,114990.0,114980.0,0.51931175]
[1754492788075,0.4621972,114990.0,114980.0,1.14947175]
[1754492788282,0.4621972,114990.0,114980.0,1.32342415]
[1754492788669,0.4621972,114990.0,114980.0,1.32442415]
[1754492789280,0.4621972,114990.0,114980.0,1.32542415]
[1754492789473,0.4621972,114990.0,114980.0,0.99650276]
[1754492789675,0.4621972,114990.0,114980.0,1.17045486]
[1754492790876,0.3889472,114990.0,114980.0,1.17045486]
[1754492791079,0.3889472,114990.0,114980.0,0.54029486]
[1754492791279,0.3889472,114990.0,114980.0,1.16981486]
[1754492791682,0.3889472,114990.0,114980.0,0.54029486]
[1754492791881,0.3889472,114990.0,114980.0,1.16981486]
[1754492792281,0.1739372,114990.0,114980.0,1.16981486]
[1754492792776,0.1739372,114990.0,114980.0,0.54029486]
[1754492792982,0.3853772,114990.0,114980.0,0.54029576]
[1754492793188,0.4592572,114990.0,114980.0,0.54029576]
[1754492793374,0.4592572,114990.0,114980.0,1.16985576]
[1754492794082,0.1739372,114990.0,114980.0,0.54029576]
[1754492794277,0.1739372,114990.0,114980.0,1.16985576]
[1754492794678,0.2174163,115000.0,114990.0,0.4443478]
[1754492794879,0.5461931,115010.0,115000.0,0.1739227]
[1754492795078,0.5461931,115010.0,115000.0,0.27041]
[1754492795479,0.5461931,115010.0,115000.0,0.19925]
[1754492795680,0.4592427,115000.0,114990.0,1.0738679]
[1754492795881,0.4602427,115000.0,114990.0,1.0738679]
[1754492796074,0.3863627,115000.0,114990.0,1.0738679]
[1754492796280,0.1749227,115000.0,114990.0,1.0738679]
[1754492798079,0.1739227,115000.0,114990.0,1.0738679]
[1754492798781,0.1749227,115000.0,114990.0,1.0738679]
[1754492798984,0.3372027,115000.0,114990.0,1.0738679]
[1754492799180,0.4602427,115000.0,114990.0,1.0738679]
[1754492799379,0.4602427,115000.0,114990.0,0.89993]
[1754492799586,0.4602427,115000.0,114990.0,0.27041]
[1754492799784,0.4602427,115000.0,114990.0,0.0467]
[1754492799979,0.4592579,114990.0,114980.0,0.96894379]
[1754492800180,0.88827569,114990.0,114980.0,0.06901379]
[1754492800380,0.173953,114980.0,114970.0,1.4647034]
[1754492800580,0.459273,114980.0,114970.0,1.4647034]
[1754492800780,0.459273,114980.0,114970.0,1.10576862]
[1754492801087,0.458273,114980.0,114970.0,1.10576862]
[1754492801985,0.457273,114980.0,114970.0,1.1737446]
[1754492802677,0.457273,114980.0,114970.0,0.1038489]
[1754492802881,1.36024279,114980.0,114970.0,0.19248734]
[1754492803076,1.36024279,114980.0,114970.0,0.17988361]
[1754492803587,1.36024279,114980.0,114970.0,0.07197598]
[1754492804186,1.089753,114980.0,114970.0,0.11667598]
[1754492804488,1.089753,114980.0,114970.0,0.26922598]
[1754492804789,0.460273,114980.0,114970.0,0.34038598]
[1754492804986,0.460273,114980.0,114970.0,0.33838598]
[1754492805186,0.465273,114980.0,114970.0,0.26722598]
[1754492805490,0.89429079,114980.0,114970.0,0.06797598]
[1754492805680,0.89429079,114980.0,114950.0,0.01292739]
[1754492805681,0.43701779,114980.0,114950.0,0.01292739]
[1754492805989,0.4593028,114960.0,114950.0,0.89993]
[1754492806188,0.4593028,114960.0,114950.0,0.444408]
[1754492806388,0.4593028,114960.0,114950.0,0.45686544]
[1754492806782,0.3854228,114960.0,114950.0,0.45686544]
[1754492807090,0.4593028,114960.0,114950.0,0.45686544]
[1754492807483,0.4593028,114960.0,114950.0,1.08638544]
[1754492808194,0.3362628,114960.0,114950.0,1.08638544]
[1754492808385,0.1759828,114960.0,114950.0,1.08638544]
[1754492808585,0.1769828,114960.0,114950.0,1.08638544]
[1754492808786,0.4623028,114960.0,114950.0,0.91238744]
[1754492809187,0.4623028,114960.0,114950.0,1.08638544]
[1754492809996,0.3884228,114960.0,114950.0,1.15737267]
[1754492810198,0.3392628,114960.0,114950.0,1.15737267]
[1754492810391,0.1769828,114960.0,114950.0,1.15737267]
[1754492810697,0.1769828,114960.0,114950.0,1.2652803]
[1754492810885,0.89132059,114960.0,114950.0,0.1913523]
[1754492811086,0.89132059,114960.0,114950.0,0.17889486]
[1754492811295,0.89132059,114960.0,114950.0,0.07098723]
[1754492811491,0.173998,114950.0,114940.0,0.5314294]
[1754492811703,0.2204948,114960.0,114950.0,0.444408]
[1754492811893,0.2204948,114960.0,114950.0,0.87342579]
[1754492812191,0.003,114960.0,114950.0,1.50294579]
[1754492812590,0.1759829,114960.0,114950.0,1.18183563]
[1754492812793,0.1739829,114960.0,114950.0,1.194708]
[1754492813596,0.5462634,114980.0,114970.0,0.1739677]
[1754492813896,0.2174531,114980.0,114970.0,0.4443777]
[1754492814097,0.3797331,114980.0,114970.0,1.0738977]
[1754492814398,0.5027731,114980.0,114970.0,0.89993]
[1754492814797,0.5027731,114980.0,114970.0,1.0738977]
[1754492815096,0.5047731,114980.0,114970.0,1.0738977]
[1754492815494,0.5047731,114980.0,114970.0,0.4443777]
[1754492815797,0.5067731,114980.0,114970.0,0.4443777]
[1754492816189,0.5067731,114980.0,114970.0,0.55228533]
[1754492816190,0.5087731,114980.0,114970.0,0.55228533]
[1754492816790,0.5067731,114980.0,114970.0,0.37831763]
[1754492817097,0.5067731,114980.0,114970.0,0.10790763]
[1754492817788,0.5067731,114980.0,114970.0,0.28187553]
[1754492817994,0.5067731,114980.0,114970.0,0.55228553]
[1754492818699,0.2234531,114980.0,114970.0,0.55228553]
[1754492819195,0.2214531,114980.0,114970.0,0.55228553]
[1754492819396,0.5067731,114980.0,114970.0,0.4443779]
[1754492819590,0.5067731,114980.0,114970.0,0.27041]
[1754492819899,0.5087731,114980.0,114970.0,0.4443778]
[1754492820298,0.5077731,114980.0,114970.0,0.27041]
[1754492820502,0.5077731,114980.0,114970.0,0.4443778]
[1754492820904,0.5077731,114980.0,114970.0,0.55228543]
[1754492821094,0.5077731,114980.0,114970.0,0.10790763]
[1754492821295,0.5087731,114980.0,114970.0,0.38151763]
[1754492821803,0.5087731,114980.0,114970.0,0.30737763]
[1754492822105,0.5087731,114980.0,114970.0,0.55548553]
[1754492822300,0.5087731,114980.0,114970.0,0.28187553]
[1754492822506,0.5087731,114980.0,114970.0,0.55548543]
[1754492822998,0.4998531,114980.0,114970.0,0.55548543]
[1754492823499,0.4958531,114980.0,114970.0,0.4475778]
[1754492823704,0.5008531,114980.0,114970.0,0.4475778]
[1754492823898,0.5008531,114980.0,114970.0,0.55548543]
[1754492824300,0.2224531,114980.0,114970.0,0.55548543]
[1754492824601,0.5008531,114980.0,114970.0,0.55548543]
[1754492824803,0.4998531,114980.0,114970.0,0.55548543]
[1754492825005,0.5018531,114980.0,114970.0,0.55548543]
[1754492825904,0.5018531,114980.0,114970.0,0.38151763]
[1754492826503,0.5018531,114980.0,114970.0,0.27361]
[1754492826700,0.6748131,114980.0,114970.0,0.45938]
[1754492826894,0.6748131,114980.0,114970.0,0.38524]
[1754492827402,0.002,114980.0,114970.0,0.3734378]
[1754492827603,0.004,114980.0,114970.0,0.87659559]
[1754492828508,0.002,114980.0,114970.0,0.87659559]
[1754492828709,0.006,114980.0,114970.0,0.87659559]
[1754492829302,0.003,114980.0,114970.0,0.87659559]
[1754492829806,0.001,114980.0,114970.0,1.08056138]
[1754492830402,0.15807,115010.0,115000.0,0.447532]
[1754492830613,0.4522919,115020.0,115010.0,0.4475171]
[1754492830815,0.2784,115020.0,115010.0,0.4475171]
[1754492831016,0.2784,115020.0,115010.0,0.55540532]
[1754492831311,0.2784,115020.0,115010.0,0.4475171]
[1754492831712,0.5827017,115030.0,115020.0,0.4475019]
[1754492831913,0.5827017,115030.0,115020.0,0.27361]
[1754492832309,0.5827017,115030.0,115020.0,0.19947]
[1754492832509,0.294222,115020.0,115010.0,0.28626019]
[1754492832712,0.452292,115020.0,115010.0,0.21212019]
[1754492832907,0.331962,115020.0,115010.0,0.18655729]
[1754492833210,0.452292,115020.0,115010.0,0.46016729]
[1754492833813,0.453292,115020.0,115010.0,0.28626019]
[1754492834412,0.453292,115020.0,115010.0,0.01265019]
[1754492834607,0.1739071,115010.0,115000.0,0.78931822]
[1754492834908,0.4523071,115010.0,115000.0,0.10788822]
[1754492835109,0.1739222,115000.0,114990.0,0.38149822]
[1754492835310,0.1739222,115000.0,114990.0,0.30735822]
[1754492835311,0.4523222,115000.0,114990.0,0.30735822]
[1754492835613,0.88133999,115000.0,114990.0,0.10788822]
[1754492835815,1.35526,115000.0,114990.0,0.10788822]
[1754492837117,1.35626,115000.0,114990.0,0.10788822]
[1754492837616,0.92724221,115000.0,114990.0,0.10788822]
[1754492837811,0.1739372,114990.0,114980.0,0.12744593]
[1754492838015,1.0843372,114990.0,114980.0,0.12744593]
[1754492839207,1.0843372,114990.0,114980.0,0.12844593]
[1754492839516,1.0843372,114990.0,114980.0,0.02055771]
[1754492839815,1.0843372,114990.0,114980.0,0.12844593]
[1754492840020,1.0843372,114990.0,114980.0,0.12944593]
[1754492841111,1.0843372,114990.0,114980.0,0.02055771]
[1754492841312,1.0893372,114990.0,114980.0,0.02055771]
[1754492841909,1.69229099,114990.0,114980.0,0.001]
[1754492842613,1.2632732,114990.0,114980.0,0.001]
[1754492842818,1.69229099,114990.0,114980.0,0.001]
[1754492843416,0.1739527,114980.0,114970.0,0.07001561]
[1754492843616,0.1739678,114970.0,114960.0,0.54655056]
[1754492843812,0.4523678,114970.0,114960.0,0.28558106]
[1754492844213,0.4523678,114970.0,114960.0,0.45956396]
[1754492844922,0.4543678,114970.0,114960.0,0.45956396]
[1754492845817,0.4543678,114970.0,114960.0,1.51982175]
[1754492845818,0.002,114970.0,114960.0,1.51982175]
[1754492846018,0.003,114970.0,114960.0,2.06352528]
[1754492846219,0.1769678,114970.0,114960.0,0.5292995]
[1754492846417,0.3350378,114970.0,114960.0,1.1610595]
[1754492846721,0.4553678,114970.0,114960.0,0.5292994]
[1754492846921,0.4553678,114970.0,114960.0,0.3553166]
[1754492847122,0.4553678,114970.0,114960.0,0.2811766]
[1754492847325,0.4553678,114970.0,114960.0,0.5292994]
[1754492847518,0.4553678,114970.0,114960.0,0.3553166]